bitfinex/quotes_BTCUSD_20220115
["timestamp","ask_amount","ask_price","bid_price","bid_amount"]
[1642288160427,0.00093343,43334.0,43329.0,0.68744434]
[1642288160628,0.00093343,43334.0,43329.0,0.005988]
[1642288161230,0.00093343,43334.0,43329.0,0.68744434]
[1642288161428,0.30149271,43336.0,43329.0,0.68744434]
[1642288161630,0.00093343,43334.0,43329.0,0.68744434]
[1642288161896,0.00093343,43334.0,43329.0,1.67486906]
[1642288162399,0.00093343,43334.0,43329.0,0.68744434]
[1642288162598,0.30149271,43336.0,43329.0,0.68744434]
[1642288162599,0.57693361,43336.0,43329.0,0.68744434]
[1642288162799,0.00214259,43334.0,43329.0,0.68744434]
[1642288162997,0.0517,43333.0,43331.0,0.58407511]
[1642288163898,0.10940183,43333.0,43329.0,0.005988]
[1642288164099,0.16710683,43333.0,43329.0,0.005988]
[1642288164700,0.16710683,43333.0,43322.0,0.58407511]
[1642288165103,0.30671523,43326.0,43322.0,0.58407511]
[1642288165301,0.30671523,43326.0,43322.0,0.57907511]
[1642288165501,0.30671523,43326.0,43323.0,0.57907511]
[1642288167123,0.30462971,43326.0,43323.0,0.57907511]
[1642288168023,0.30462971,43326.0,43320.0,1.66899988]
[1642288168825,0.00093351,43325.0,43320.0,1.66899988]
[1642288169025,0.00194586,43323.0,43320.0,1.66899988]
[1642288169226,0.00194586,43323.0,43319.0,1.60745634]
[1642288169679,0.00194586,43323.0,43319.0,1.56265634]
[1642288171079,0.00194586,43323.0,43319.0,0.8812]
[1642288171684,0.00194586,43323.0,43318.0,0.68145634]
[1642288171685,0.0517,43322.0,43318.0,0.68145634]
[1642288171981,0.05796028,43322.0,43318.0,0.68145634]
[1642288172179,0.05796028,43322.0,43317.0,0.00073956]
[1642288172180,0.05796028,43322.0,43317.0,0.68145634]
[1642288172380,0.05796028,43322.0,43317.0,0.68219591]
[1642288172780,0.31436222,43318.0,43317.0,0.68219591]
[1642288172984,0.0517,43318.0,43317.0,0.00073957]
[1642288173426,0.0517,43318.0,43316.0,0.1916544]
[1642288174027,0.0517,43318.0,43317.0,1.6090034]
[1642288174627,0.0517,43318.0,43317.0,1.5642034]
[1642288174828,0.0517,43318.0,43317.0,1.5194034]
[1642288175729,0.0467,43318.0,43317.0,2.2694034]
[1642288176130,0.00194586,43323.0,43317.0,3.93840895]
[1642288176334,0.00194586,43323.0,43318.0,0.3506205]
[1642288176881,0.00194586,43323.0,43319.0,0.58453316]
[1642288178892,0.00194586,43323.0,43321.0,0.00128944]
[1642288179689,0.00194586,43323.0,43322.0,0.58413316]
[1642288179887,0.00194586,43323.0,43322.0,0.79095025]
[1642288180287,0.21231114,43335.0,43328.0,0.32035808]
[1642288180488,0.661,43336.0,43328.0,0.32035808]
[1642288180730,0.057695,43335.0,43328.0,0.32035808]
[1642288181329,0.26422486,43333.0,43328.0,0.32035808]
[1642288182831,0.26422486,43333.0,43328.0,0.31913396]
[1642288183231,0.26509277,43333.0,43328.0,0.31913396]
[1642288184578,0.26509277,43333.0,43324.0,0.3047]
[1642288184782,0.32279177,43333.0,43324.0,0.2601]
[1642288185383,0.32192386,43333.0,43324.0,0.2601]
[1642288185583,0.00086921,43331.0,43324.0,0.2601]
[1642288186384,0.00086921,43331.0,43324.0,0.45793841]
[1642288186586,0.1,43335.0,43324.0,0.45761644]
[1642288186791,1.29039,43346.0,43327.0,0.00121366]
[1642288186792,0.00086922,43330.0,43327.0,0.00121366]
[1642288187187,0.00086922,43330.0,43329.0,0.00126735]
[1642288187587,0.00086922,43330.0,43329.0,2.38052962]
[1642288187787,0.33244524,43341.0,43329.0,2.75622762]
[1642288187788,0.00201008,43341.0,43329.0,2.75622762]
[1642288187988,0.00347629,43338.0,43335.0,0.00126818]
[1642288189033,0.00201008,43341.0,43337.0,0.00211651]
[1642288189235,0.00086877,43339.0,43337.0,0.00211651]
[1642288189833,0.00086877,43339.0,43336.0,0.27061453]
[1642288190033,0.00086877,43339.0,43337.0,0.19228769]
[1642288190233,0.00201008,43341.0,43337.0,0.19840413]
[1642288190433,0.00086876,43340.0,43337.0,0.20858518]
[1642288190834,0.00086876,43340.0,43337.0,2.34649009]
[1642288191034,0.00086876,43340.0,43337.0,2.13790491]
[1642288191433,0.00201008,43341.0,43337.0,2.13790491]
[1642288191633,0.00287883,43341.0,43337.0,2.13790491]
[1642288191878,0.00287883,43341.0,43336.0,0.27061453]
[1642288192287,0.26646058,43346.0,43337.0,2.05]
[1642288192880,0.26646058,43346.0,43336.0,0.27061453]
[1642288193684,0.32414058,43346.0,43336.0,0.27061453]
[1642288194082,0.00325919,43341.0,43337.0,0.00274619]
[1642288194985,0.33172149,43339.0,43336.0,0.23123188]
[1642288197434,0.32672149,43339.0,43336.0,0.23123188]
[1642288199236,0.00325919,43341.0,43337.0,0.00275557]
[1642288199880,0.00325919,43341.0,43336.0,0.23123188]
[1642288199881,0.00325919,43341.0,43336.0,0.18888745]
[1642288200285,0.24236969,43340.0,43336.0,0.18888745]
[1642288202284,0.00325919,43341.0,43337.0,0.2084607]
[1642288202485,0.00325919,43341.0,43340.0,0.00120175]
[1642288202685,0.00325919,43341.0,43340.0,0.05290175]
[1642288203935,0.0016296,43341.0,43340.0,0.05290175]
[1642288204133,0.0016296,43341.0,43340.0,0.42859975]
[1642288204334,0.0016296,43341.0,43340.0,0.52859975]
[1642288204535,0.0016296,43341.0,43340.0,0.74323176]
[1642288204735,0.00093333,43343.0,43340.0,0.74323176]
[1642288204935,0.00093333,43343.0,43340.0,0.69843176]
[1642288205136,0.00093333,43343.0,43342.0,0.00125744]
[1642288205335,0.00093333,43343.0,43342.0,2.10295744]
[1642288205542,0.00093333,43343.0,43342.0,2.20295744]
[1642288205836,0.24908532,43352.0,43343.0,0.31131517]
[1642288206037,0.00093332,43345.0,43343.0,0.50563633]
[1642288206238,0.00093332,43345.0,43344.0,2.1909392]
[1642288206638,0.00093332,43345.0,43344.0,2.2909392]
[1642288206885,0.002,43362.0,43344.0,2.67414651]
[1642288207085,0.002,43362.0,43345.0,0.375698]
[1642288207086,0.0009333,43347.0,43345.0,0.375698]
[1642288207286,0.0009333,43347.0,43346.0,2.27469607]
[1642288207486,0.0009333,43347.0,43346.0,2.65039407]
[1642288207687,0.00373257,43354.0,43346.0,2.75039407]
[1642288207887,0.00373257,43354.0,43352.0,0.00120617]
[1642288208092,0.002,43362.0,43352.0,0.00120617]
[1642288208488,0.002,43362.0,43348.0,0.19270038]
[1642288208688,0.42729104,43363.0,43349.0,2.05]
[1642288208887,0.42729104,43363.0,43358.0,0.29049685]
[1642288209890,0.28287489,43361.0,43358.0,0.24569685]
[1642288210090,0.0035336,43363.0,43358.0,0.24569685]
[1642288210740,0.00404734,43363.0,43358.0,0.24569685]
[1642288211137,0.28170029,43360.0,43358.0,0.24569685]
[1642288213039,0.28170029,43360.0,43350.0,0.2994]
[1642288213642,0.18984066,43359.0,43350.0,0.2994]
[1642288213841,0.28170029,43360.0,43350.0,0.2994]
[1642288214041,0.28170029,43360.0,43353.0,0.2445494]
[1642288214484,0.0009332,43357.0,43353.0,0.2445494]
[1642288214879,0.0009332,43357.0,43353.0,0.1996494]
[1642288215280,0.28170029,43360.0,43353.0,0.1996494]
[1642288215480,0.0009332,43357.0,43353.0,0.1996494]
[1642288215680,0.0009332,43357.0,43350.0,0.2994]
[1642288216581,0.28170029,43360.0,43350.0,0.2994]
[1642288216882,0.15766268,43361.0,43350.0,0.2994]
[1642288216883,0.33072082,43352.0,43350.0,0.2994]
[1642288217080,0.33072082,43352.0,43347.0,0.44032267]
[1642288217886,0.33165407,43352.0,43344.0,0.9895]
[1642288218132,0.0517,43351.0,43344.0,0.9895]
[1642288219232,0.33485615,43345.0,43344.0,0.9895]
[1642288219631,0.33485615,43345.0,43341.0,0.00076291]
[1642288220034,0.33485615,43345.0,43337.0,0.06977059]
[1642288220234,0.33485615,43345.0,43338.0,0.18970806]
[1642288220434,0.33485615,43345.0,43337.0,0.35691173]
[1642288220637,0.33485615,43345.0,43338.0,0.18871667]
[1642288221436,0.33485615,43345.0,43338.0,0.18778201]
[1642288221636,0.33485615,43345.0,43337.0,0.35691173]
[1642288222487,0.33485615,43345.0,43337.0,0.06977059]
[1642288223988,0.33485615,43345.0,43339.0,0.00075613]
[1642288223989,0.02081944,43341.0,43339.0,0.00075613]
[1642288224191,1.5017,43340.0,43339.0,0.00075613]
[1642288224389,0.0517,43340.0,43339.0,0.00075613]
[1642288224589,0.1517,43340.0,43339.0,0.00075613]
[1642288224990,0.1517,43340.0,43337.0,0.02762464]
[1642288225191,0.1517,43340.0,43337.0,0.02838081]
[1642288225635,0.109392,43340.0,43337.0,0.02838081]
[1642288226247,0.19733756,43339.0,43337.0,0.02762464]
[1642288226444,0.8017,43338.0,43337.0,0.02762464]
[1642288226639,0.34861982,43338.0,43337.0,0.02762464]
[1642288227842,0.24861982,43338.0,43337.0,0.02762464]
[1642288228041,0.34861982,43338.0,43337.0,0.02762464]
[1642288229043,0.0517,43338.0,43337.0,0.02762464]
[1642288229243,0.1517,43338.0,43337.0,0.02762464]
[1642288229491,0.0517,43338.0,43337.0,0.02762464]
[1642288230091,0.0517,43338.0,43332.0,2.28176025]
[1642288231398,0.0517,43338.0,43330.0,0.9588]
[1642288231992,0.0517,43338.0,43331.0,0.18578631]
[1642288232792,0.0517,43338.0,43331.0,0.18506183]
[1642288232992,0.0517,43338.0,43330.0,0.9588]
[1642288233632,0.0517,43338.0,43332.0,0.00042013]
[1642288234037,0.0517,43338.0,43337.0,0.0021473]
[1642288235034,0.0517,43338.0,43330.0,0.9588]
[1642288235035,0.0517,43338.0,43330.0,0.91699881]
[1642288235433,0.0517,43338.0,43331.0,0.18521622]
[1642288235633,0.0517,43338.0,43330.0,0.91699881]
[1642288238283,0.0517,43338.0,43331.0,0.00041881]
[1642288239083,0.0517,43338.0,43337.0,0.00187889]
[1642288240087,0.0517,43338.0,43330.0,0.87482252]
[1642288240738,0.0517,43338.0,43331.0,0.18567873]
[1642288243442,0.0517,43338.0,43331.0,0.18067873]
[1642288244044,0.0517,43338.0,43337.0,0.00164403]
[1642288244686,0.25693764,43339.0,43337.0,0.00164403]
[1642288245086,0.25693764,43339.0,43330.0,1.41453366]
[1642288245285,0.25693764,43339.0,43331.0,0.18582767]
[1642288245687,0.0009334,43337.0,43331.0,0.18582767]
[1642288246487,0.25693764,43339.0,43331.0,0.18582767]
[1642288246689,0.0009334,43336.0,43331.0,0.18582767]
[1642288246888,0.0009334,43336.0,43331.0,0.18412528]
[1642288247288,0.0009334,43336.0,43330.0,0.83176655]
[1642288247690,0.25693764,43339.0,43330.0,0.83176655]
[1642288247989,0.00093341,43335.0,43330.0,0.83176655]
[1642288248237,0.00093341,43335.0,43331.0,0.18352295]
[1642288248639,0.00093341,43335.0,43330.0,0.83176655]
[1642288249042,0.25693764,43339.0,43337.0,0.00143852]
[1642288249842,0.0417,43338.0,43337.0,0.00143852]
[1642288250042,0.0417,43338.0,43330.0,0.78850507]
[1642288250941,0.0417,43338.0,43332.0,1.81189376]
[1642288251141,0.0417,43338.0,43330.0,0.78850507]
[1642288251544,0.00093339,43337.0,43330.0,0.78850507]
[1642288251744,0.0517,43336.0,43330.0,0.78850507]
[1642288252808,0.00093341,43335.0,43330.0,0.78850507]
[1642288253707,0.057691,43337.0,43330.0,0.78850507]
[1642288253908,0.00093341,43335.0,43330.0,0.78850507]
[1642288255106,0.00085037,43335.0,43330.0,0.74360507]
[1642288256138,0.057691,43337.0,43330.0,0.74360507]
[1642288256338,0.00085037,43335.0,43330.0,0.74360507]
[1642288257345,0.25693764,43339.0,43330.0,0.74360507]
[1642288257539,0.00085037,43335.0,43330.0,0.74360507]
[1642288258441,0.00085037,43335.0,43329.0,0.00051852]
[1642288258644,0.00085037,43335.0,43328.0,0.58276711]
[1642288258645,0.0517,43334.0,43328.0,0.58276711]
[1642288258843,0.0517,43334.0,43329.0,0.00051852]
[1642288258844,0.2009427,43333.0,43329.0,0.00051852]
[1642288259045,0.00129451,43330.0,43329.0,0.00051852]
[1642288259396,1.61713878,43330.0,43329.0,0.00051852]
[1642288259696,1.71713878,43330.0,43329.0,0.00051852]
[1642288259901,1.77484173,43330.0,43327.0,0.00058174]
[1642288260098,0.4,43329.0,43324.0,0.53854885]
[1642288260296,0.0517,43328.0,43322.0,0.53854885]
[1642288260695,0.24491312,43327.0,43322.0,0.53854885]
[1642288260895,0.0517,43326.0,43322.0,0.53854885]
[1642288261096,0.0517,43326.0,43318.0,0.82785113]
[1642288261698,0.27247101,43323.0,43318.0,0.82785113]
[1642288261897,0.0517,43322.0,43318.0,0.82785113]
[1642288262098,0.0467,43322.0,43318.0,0.82785113]
[1642288262297,0.17440846,43330.0,43319.0,0.21044023]
[1642288262298,0.0517,43328.0,43319.0,0.21044023]
[1642288262501,0.1,43333.0,43319.0,0.21044023]
[1642288262697,0.0517,43334.0,43320.0,1.80047647]
[1642288263139,0.28721802,43332.0,43323.0,0.27509121]
[1642288263541,0.28815142,43332.0,43325.0,0.00073322]
[1642288264543,0.28721802,43332.0,43323.0,0.27509121]
[1642288264842,0.28721802,43332.0,43325.0,0.00073321]
[1642288264843,0.28815143,43332.0,43325.0,0.00073321]
[1642288265242,0.28815143,43332.0,43323.0,0.23112442]
[1642288265843,0.28721802,43332.0,43323.0,0.23112442]
[1642288266445,0.28721802,43332.0,43323.0,0.91258076]
[1642288266890,0.28721802,43332.0,43323.0,0.68145634]
[1642288268294,0.00093346,43330.0,43323.0,0.68218311]
[1642288268496,0.05863246,43330.0,43323.0,0.68218311]
[1642288268896,0.05863246,43330.0,43325.0,0.58277267]
[1642288269398,0.057699,43330.0,43325.0,0.58277267]
[1642288269596,0.05863246,43330.0,43325.0,0.58277267]
[1642288270303,0.05863246,43330.0,43325.0,0.53807267]
[1642288270648,0.057699,43330.0,43325.0,0.53807267]
[1642288270945,0.2485494,43325.0,43323.0,0.00072677]
[1642288271545,0.05863246,43330.0,43323.0,0.86344317]
[1642288271746,0.057699,43330.0,43323.0,0.68145634]
[1642288271946,0.05863242,43330.0,43323.0,0.68145634]
[1642288272145,0.01159163,43330.0,43323.0,0.68145634]
[1642288272647,0.28573477,43329.0,43323.0,0.68145634]
[1642288272850,0.28573477,43329.0,43322.0,0.68218316]
[1642288273047,0.28573477,43329.0,43322.0,0.68145634]
[1642288273246,0.28573477,43329.0,43323.0,0.00081792]
[1642288273945,0.28495477,43329.0,43323.0,0.00081792]
[1642288274245,0.28495477,43329.0,43322.0,0.68145634]
[1642288274492,0.28495477,43329.0,43323.0,0.00081792]
[1642288275397,0.28495477,43329.0,43322.0,0.63667426]
[1642288275596,0.28495477,43329.0,43323.0,0.00081792]
[1642288276596,0.28495477,43329.0,43322.0,0.63667426]
[1642288278000,0.00084106,43328.0,43322.0,0.63667426]
[1642288279058,0.28495477,43329.0,43324.0,0.58293594]
[1642288279259,0.00084106,43327.0,43324.0,0.58293594]
[1642288280258,0.28495477,43329.0,43324.0,0.58293594]
[1642288280459,0.00084106,43328.0,43324.0,0.53783594]
[1642288281461,0.28495477,43329.0,43324.0,0.53783594]
[1642288281663,0.00083976,43328.0,43324.0,0.53783594]
[1642288282494,0.28495477,43329.0,43324.0,0.53783594]
[1642288282693,0.00083976,43328.0,43324.0,0.53783594]
[1642288283793,0.28495477,43329.0,43324.0,0.53783594]
[1642288283993,0.00083976,43328.0,43324.0,0.53783594]
[1642288284994,0.0517,43327.0,43324.0,0.53783594]
[1642288285194,0.109407,43327.0,43324.0,0.53783594]
[1642288285394,0.109407,43327.0,43324.0,0.49303594]
[1642288287847,0.16711396,43327.0,43324.0,0.48803594]
[1642288290288,0.16711396,43327.0,43322.0,0.63667426]
[1642288290488,0.16711396,43327.0,43322.0,0.59157426]
[1642288290888,0.16711396,43327.0,43320.0,0.2853]
[1642288291092,0.16795386,43327.0,43321.0,0.00079982]
[1642288291489,0.16795386,43327.0,43321.0,0.98815604]
[1642288291890,0.16795386,43327.0,43321.0,0.00079982]
[1642288292090,0.16711396,43327.0,43316.0,0.1916544]
[1642288292290,0.16711396,43327.0,43321.0,0.00079982]
[1642288292491,0.16711396,43327.0,43322.0,0.98735622]
[1642288292492,0.16795386,43327.0,43322.0,0.98735622]
[1642288292692,0.1102469,43327.0,43322.0,0.98735622]
[1642288293352,0.109407,43327.0,43322.0,0.98735622]
[1642288293556,0.1102469,43327.0,43322.0,0.98735622]
[1642288294054,0.0014594,43323.0,43322.0,0.98735622]
[1642288295454,0.10770628,43327.0,43321.0,0.94235622]
[1642288295857,0.1068664,43327.0,43321.0,0.94235622]
[1642288296052,0.1077063,43327.0,43321.0,0.00079982]
[1642288296251,0.0993786,43327.0,43321.0,0.00079982]
[1642288296651,0.0993786,43327.0,43324.0,0.58332114]
[1642288296907,0.0945387,43327.0,43324.0,0.58332114]
[1642288297106,0.0945387,43327.0,43325.0,0.58332114]
[1642288298907,0.0517,43327.0,43325.0,0.58332114]
[1642288300511,0.0517,43327.0,43325.0,0.53862114]
[1642288301239,0.0517,43327.0,43323.0,0.68056373]
[1642288301437,0.0517,43327.0,43324.0,0.68056373]
[1642288303238,0.0517,43327.0,43325.0,0.68056373]
[1642288305197,0.17716085,43326.0,43325.0,0.68056373]
[1642288305601,0.17716085,43326.0,43325.0,0.63586373]
[1642288306400,0.17716085,43326.0,43321.0,0.0007998]
[1642288306601,0.2925767,43326.0,43318.0,0.3101]
[1642288306804,0.2925767,43326.0,43321.0,0.00079981]
[1642288307602,0.2441155,43322.0,43321.0,0.00079981]
[1642288307804,0.2441155,43322.0,43317.0,0.77514875]
[1642288308003,0.2441155,43322.0,43321.0,0.00079982]
[1642288309147,0.2925767,43326.0,43319.0,0.00079987]
[1642288309847,0.2925767,43326.0,43325.0,0.58360648]
[1642288310047,0.62481085,43326.0,43325.0,0.58360648]
[1642288310548,0.62481085,43326.0,43325.0,0.53890648]
[1642288311547,0.11541585,43326.0,43325.0,0.53890648]
[1642288311998,0.11541585,43326.0,43322.0,0.98738101]
[1642288312596,0.32063978,43326.0,43322.0,0.98738101]
[1642288313198,0.32063978,43326.0,43321.0,0.00079782]
[1642288313398,0.32063978,43326.0,43324.0,0.68064955]
[1642288315099,0.057708,43326.0,43324.0,0.68064955]
[1642288315499,0.057708,43326.0,43324.0,0.63594955]
[1642288315756,0.0517,43325.0,43324.0,0.63594955]
[1642288316157,0.36720205,43325.0,43324.0,0.63594955]
[1642288316757,0.0517,43325.0,43324.0,0.63594955]
[1642288317763,0.30356388,43325.0,43324.0,0.63594955]
[1642288317965,0.48595677,43325.0,43324.0,0.63594955]
[1642288318166,0.30356388,43325.0,43324.0,0.63594955]
[1642288318763,0.0517,43325.0,43324.0,0.63594955]
[1642288318965,0.0517,43325.0,43322.0,0.98735688]
[1642288319166,0.10940998,43325.0,43322.0,0.98735688]
[1642288320199,0.24735438,43324.0,43322.0,0.98735688]
[1642288320598,0.24735438,43324.0,43322.0,0.94275688]
[1642288323248,0.24735438,43324.0,43322.0,1.62365478]
[1642288323949,0.24735438,43324.0,43323.0,0.5837347]
[1642288324148,0.43839801,43324.0,43323.0,0.5837347]
[1642288324549,0.53839801,43324.0,43323.0,0.5837347]
[1642288325147,0.29104363,43324.0,43323.0,0.5837347]
[1642288325349,0.52510788,43324.0,43323.0,0.5837347]
[1642288325547,0.10940998,43325.0,43323.0,0.5837347]
[1642288325749,0.10940998,43325.0,43319.0,0.53983452]
[1642288325947,0.10940998,43325.0,43321.0,0.00079982]
[1642288326647,0.42209294,43325.0,43321.0,0.00079982]
[1642288326892,0.42209294,43325.0,43319.0,0.6808979]
[1642288327097,0.52209294,43325.0,43319.0,0.68130775]
[1642288328292,0.52293286,43325.0,43319.0,0.68168999]
[1642288329393,0.52209294,43325.0,43319.0,0.6808979]
[1642288329592,0.52293286,43325.0,43319.0,0.68168999]
[1642288329793,0.52293286,43325.0,43319.0,0.00079209]
[1642288330493,0.52293286,43325.0,43318.0,0.63698999]
[1642288330749,0.52293286,43325.0,43319.0,0.63778208]
[1642288331351,0.52293286,43325.0,43319.0,0.00079209]
[1642288331754,0.69491601,43325.0,43316.0,0.50996366]
[1642288331953,0.52209294,43325.0,43316.0,0.1916544]
[1642288332355,0.46438296,43325.0,43316.0,0.1916544]
[1642288332955,0.0517,43325.0,43317.0,0.31028184]
[1642288333156,0.0517,43325.0,43317.0,0.71823232]
[1642288333356,0.0577,43330.0,43317.0,0.71823232]
[1642288333755,0.0577,43330.0,43318.0,2.78847995]
[1642288334157,0.63805723,43334.0,43328.0,0.25055097]
[1642288334158,0.63179928,43334.0,43328.0,0.25055097]
[1642288334418,0.02002317,43341.0,43328.0,0.25055097]
[1642288334614,0.19128046,43340.0,43328.0,0.25055097]
[1642288335219,0.26237109,43338.0,43328.0,0.25055097]
[1642288335615,0.0009334,43336.0,43328.0,0.20585097]
[1642288336414,0.0009334,43336.0,43331.0,0.58320867]
[1642288336614,0.26237109,43338.0,43331.0,0.58320867]
[1642288336815,0.00093342,43334.0,43331.0,0.58320867]
[1642288337315,0.00093342,43334.0,43330.0,0.75780092]
[1642288337719,0.26237109,43338.0,43330.0,0.75780092]
[1642288337917,0.00093342,43334.0,43330.0,0.75780092]
[1642288339090,0.26237109,43338.0,43337.0,0.00144115]
[1642288340590,0.26237109,43338.0,43330.0,0.54004982]
[1642288341489,0.0009334,43336.0,43330.0,0.54004982]
[1642288342501,0.26237109,43338.0,43330.0,0.54004982]
[1642288342702,0.00093341,43335.0,43330.0,0.54004982]
[1642288343503,0.00093341,43335.0,43329.0,0.17755547]
[1642288343705,0.02002317,43341.0,43329.0,0.85652235]
[1642288343904,0.25841551,43334.0,43329.0,0.85652235]
[1642288344303,0.25841551,43334.0,43329.0,1.84371682]
[1642288344904,0.25748209,43334.0,43329.0,0.85652235]
[1642288345105,0.25841551,43334.0,43329.0,0.85652235]
[1642288345507,0.00093342,43334.0,43329.0,0.85652235]
[1642288345753,0.00093342,43334.0,43329.0,0.81182235]
[1642288346155,0.02002317,43341.0,43329.0,0.81182235]
[1642288346454,0.00093342,43334.0,43329.0,0.13285547]
[1642288347056,0.00093342,43334.0,43329.0,0.81182235]
[1642288347457,0.25817569,43336.0,43329.0,0.13285547]
[1642288347655,0.00093342,43334.0,43328.0,0.88481785]
[1642288348654,0.25817569,43336.0,43328.0,0.88481785]
[1642288348853,0.00093343,43333.0,43328.0,0.88481785]
[1642288349256,0.00093343,43333.0,43330.0,0.58121762]
[1642288349703,0.25817569,43336.0,43330.0,0.58121762]
[1642288349909,0.00093342,43334.0,43330.0,0.58121762]
[1642288350708,0.00093342,43334.0,43329.0,0.53641762]
[1642288350904,0.25817569,43336.0,43329.0,0.53641762]
[1642288351104,0.00093342,43334.0,43329.0,0.53641762]
[1642288352204,0.25817569,43336.0,43329.0,0.53641762]
[1642288352407,0.00093342,43334.0,43329.0,0.53641762]
[1642288353454,0.25817569,43336.0,43329.0,0.53641762]
[1642288353654,0.00093342,43334.0,43329.0,0.53641762]
[1642288354658,0.25817569,43336.0,43329.0,0.53641762]
[1642288354861,0.00093342,43334.0,43328.0,0.20585097]
[1642288355059,0.00093342,43334.0,43326.0,0.99076688]
[1642288355657,0.00093342,43334.0,43326.0,0.94606688]
[1642288355863,0.25817569,43336.0,43326.0,0.94606688]
[1642288356058,0.00093344,43332.0,43326.0,0.94606688]
[1642288357002,0.25817569,43336.0,43326.0,0.94606688]
[1642288357298,0.00093345,43331.0,43326.0,0.94606688]
[1642288358198,0.25817569,43336.0,43326.0,0.94606688]
[1642288358403,0.00093345,43331.0,43326.0,0.94606688]
[1642288358599,0.25817569,43336.0,43331.0,0.0018669]
[1642288359199,0.24817569,43336.0,43331.0,0.0018669]
[1642288360788,0.24817569,43336.0,43328.0,0.53658486]
[1642288360995,0.24817569,43336.0,43328.0,0.71897723]
[1642288361389,0.24817569,43336.0,43328.0,0.53658486]
[1642288362089,0.00093342,43334.0,43328.0,0.53658486]
[1642288362291,0.00041342,43334.0,43328.0,0.53658486]
[1642288362989,0.24817569,43336.0,43328.0,0.53658486]
[1642288363191,0.24859829,43336.0,43328.0,0.53658486]
[1642288364089,0.24817569,43336.0,43328.0,0.53658486]
[1642288364291,0.2485983,43336.0,43328.0,0.53658486]
[1642288365399,0.24817569,43336.0,43328.0,0.53658486]
[1642288365699,0.24900635,43336.0,43328.0,0.49178486]
[1642288366498,0.24817569,43336.0,43328.0,0.49178486]
[1642288366698,0.24900635,43336.0,43328.0,0.49178486]
[1642288367498,0.24900635,43336.0,43327.0,0.67977394]
[1642288367698,0.24817569,43336.0,43327.0,0.67896688]
[1642288367899,0.24901649,43336.0,43327.0,0.6797642]
[1642288368761,0.41992035,43336.0,43327.0,0.6797642]
[1642288368962,0.51907955,43336.0,43327.0,0.67896688]
[1642288369158,0.41992035,43336.0,43327.0,0.6797642]
[1642288369357,0.51992035,43336.0,43327.0,0.6797642]
[1642288369557,0.51992035,43336.0,43327.0,0.00079732]
[1642288369958,0.25121355,43329.0,43327.0,0.00079732]
[1642288370257,0.25121355,43329.0,43324.0,0.67896688]
[1642288370460,0.25121355,43329.0,43327.0,0.00079732]
[1642288370662,0.25121355,43329.0,43324.0,0.6350642]
[1642288371060,0.25121355,43329.0,43323.0,0.96242669]
[1642288371759,0.25121355,43329.0,43323.0,0.32736249]
[1642288372001,0.25121355,43329.0,43324.0,0.98727449]
[1642288372603,0.25121355,43329.0,43318.0,0.28478768]
[1642288373203,0.25121355,43329.0,43319.0,0.98730611]
[1642288374106,0.25121355,43329.0,43322.0,0.00040948]
[1642288374705,0.25121355,43329.0,43326.0,0.58072384]
[1642288375756,0.25121355,43329.0,43326.0,0.53592384]
[1642288376856,0.25121355,43329.0,43325.0,0.00071134]
[1642288377355,0.25121355,43329.0,43319.0,0.77514875]
[1642288377556,0.25121355,43329.0,43325.0,0.00071135]
[1642288378156,0.25121355,43329.0,43325.0,0.67811788]
[1642288378558,0.25121355,43329.0,43325.0,0.67740653]
[1642288378758,0.25121355,43329.0,43325.0,0.67811788]
[1642288379061,0.25121355,43329.0,43326.0,1.66470462]
[1642288380809,0.25121355,43329.0,43326.0,1.61930462]
[1642288381210,0.25121355,43329.0,43325.0,0.60470816]
[1642288383950,0.42090504,43329.0,43325.0,0.60470816]
[1642288384149,0.25121355,43329.0,43327.0,0.58079246]
[1642288384354,0.4187607,43329.0,43327.0,0.58079246]
[1642288384550,0.16790633,43328.0,43327.0,0.58079246]
[1642288384750,0.16790633,43328.0,43326.0,0.58079246]
[1642288385150,0.25121355,43329.0,43326.0,0.58079246]
[1642288385951,0.25121355,43329.0,43326.0,0.53609246]
[1642288386151,0.41940956,43329.0,43326.0,0.53609246]
[1642288386353,0.25121355,43329.0,43326.0,0.53609246]
[1642288387010,0.41915366,43329.0,43326.0,0.53609246]
[1642288387210,0.0517,43328.0,43326.0,0.53609246]
[1642288388211,0.0517,43333.0,43326.0,0.53609246]
[1642288388411,0.00093345,43330.0,43326.0,0.53609246]
[1642288388811,0.00093345,43330.0,43326.0,0.67758428]
[1642288389309,0.31708206,43331.0,43326.0,0.67758428]
[1642288389514,0.00093346,43330.0,43326.0,0.67758428]
[1642288390510,0.31708206,43331.0,43326.0,0.67758428]
[1642288390753,0.00093346,43330.0,43326.0,0.67758428]
[1642288390954,0.00093346,43330.0,43326.0,0.63288428]
[1642288391755,0.31708206,43331.0,43326.0,0.63288428]
[1642288391957,0.00093346,43330.0,43326.0,0.63288428]
[1642288393058,0.0517,43333.0,43326.0,0.63288428]
[1642288393260,0.00093346,43330.0,43326.0,0.63288428]
[1642288394260,0.0517,43333.0,43328.0,0.5816044]
[1642288394506,0.00093346,43330.0,43328.0,0.5816044]
[1642288395307,0.41617448,43333.0,43328.0,0.5816044]
[1642288395506,0.00093345,43331.0,43328.0,0.5816044]
[1642288395906,0.00093345,43331.0,43328.0,0.5369044]
[1642288396507,0.26447448,43333.0,43328.0,0.5369044]
[1642288396706,0.00093344,43332.0,43328.0,0.5369044]
[1642288398958,0.55185736,43335.0,43328.0,0.5369044]
[1642288399158,0.55185736,43335.0,43332.0,0.32990207]
[1642288399758,0.2999,43335.0,43332.0,0.32990207]
[1642288400861,0.2999,43335.0,43332.0,0.28490207]
[1642288405506,0.2999,43335.0,43330.0,0.58160487]
[1642288405955,0.2999,43335.0,43331.0,0.53690487]
[1642288406354,0.30075411,43335.0,43331.0,0.53690487]
[1642288407455,0.2999,43335.0,43331.0,0.53690487]
[1642288407661,0.29575411,43335.0,43331.0,0.53690487]
[1642288408556,0.2949,43335.0,43331.0,0.53690487]
[1642288408756,0.29575411,43335.0,43331.0,0.53690487]
[1642288409810,0.29575411,43335.0,43328.0,0.25782298]
[1642288409811,0.2949,43335.0,43328.0,0.89070726]
[1642288410011,0.29577732,43335.0,43328.0,0.89070726]
[1642288410412,0.29577732,43335.0,43328.0,0.63288428]
[1642288411013,0.2949,43335.0,43328.0,0.58808428]
[1642288411213,0.00087733,43334.0,43328.0,0.58808428]
[1642288411613,0.00087733,43334.0,43328.0,0.85082592]
[1642288412014,0.00087733,43334.0,43328.0,0.26274164]
[1642288412215,0.2949,43335.0,43328.0,0.26274164]
[1642288412414,0.00087734,43333.0,43328.0,0.26274164]
[1642288412919,0.00087734,43333.0,43329.0,0.98727907]
[1642288413358,0.2949,43335.0,43329.0,0.98727907]
[1642288413553,0.00087077,43333.0,43329.0,0.98727907]
[1642288414655,0.2949,43335.0,43329.0,0.98727907]
[1642288414855,0.00087077,43333.0,43329.0,0.98727907]
[1642288415058,0.00087077,43333.0,43331.0,0.58176955]